bitfinex/quotes_ETHUSD_20230109
["timestamp","ask_amount","ask_price","bid_price","bid_amount"]
[1673270616380,5.94602094,1322.6,1322.5,26.47796059]
[1673270616642,3.67751596,1322.6,1322.5,26.47796059]
[1673270617166,5.94602447,1322.6,1322.5,26.47796059]
[1673270617323,5.94602447,1322.6,1322.5,29.88192965]
[1673270617704,3.67751596,1322.6,1322.5,26.47796059]
[1673270620277,3.67751596,1322.6,1322.5,18.91653059]
[1673270621683,3.67751596,1322.6,1322.5,26.47796059]
[1673270622066,3.67751596,1322.6,1322.5,18.91653059]
[1673270622301,3.67751596,1322.6,1322.5,11.35510059]
[1673270622521,3.67751596,1322.6,1322.5,18.91653059]
[1673270625369,3.67751596,1322.6,1322.5,3.79367059]
[1673270625586,4.75228816,1322.6,1322.5,3.79367059]
[1673270625810,23.27687346,1322.6,1322.5,3.79367059]
[1673270626306,8.15515346,1322.6,1322.5,15.12286]
[1673270626687,8.15515346,1322.6,1322.5,7.56143]
[1673270627046,4.02165503,1322.6,1322.5,26.48195064]
[1673270627898,6.85645955,1322.6,1322.5,26.48195064]
[1673270628372,6.86245955,1322.6,1322.5,26.57795064]
[1673270628828,9.13023246,1322.6,1322.5,26.57795064]
[1673270629043,6.86245955,1322.6,1322.5,26.57795064]
[1673270632474,9.13020412,1322.6,1322.5,26.57795064]
[1673270633995,6.2953996,1322.6,1322.5,26.57795064]
[1673270634474,6.2953996,1322.6,1322.5,29.9919077]
[1673270638776,6.2953996,1322.6,1322.5,29.9899077]
[1673270639106,6.2953996,1322.6,1322.5,29.9919077]
[1673270640928,6.2953996,1322.6,1322.5,29.98931792]
[1673270641672,4.02765503,1322.6,1322.5,32.98931792]
[1673270641889,4.02165503,1322.6,1322.5,32.98931792]
[1673270642239,2.89557654,1322.6,1322.5,40.23923858]
[1673270642503,2.89557654,1322.6,1322.5,34.69831792]
[1673270645450,2.89557654,1322.6,1322.5,34.92831792]
[1673270647403,2.89757654,1322.6,1322.5,34.92631792]
[1673270647612,2.89557654,1322.6,1322.5,34.92831792]
[1673270649974,2.89557654,1322.6,1322.5,34.69831792]
[1673270652348,2.89557654,1322.6,1322.5,34.92831792]
[1673270653913,2.89757654,1322.6,1322.5,34.92631792]
[1673270654121,2.89557654,1322.6,1322.5,34.92831792]
[1673270660477,2.89557654,1322.6,1322.5,34.69831792]
[1673270666891,2.89268295,1322.6,1322.5,34.69831792]
[1673270667942,2.89268295,1322.6,1322.5,36.57504687]
[1673270668148,2.89268295,1322.6,1322.5,34.69831792]
[1673270669156,2.89268295,1322.6,1322.5,36.57505997]
[1673270669412,2.89268295,1322.6,1322.5,34.69831792]
[1673270669627,2.89268295,1322.6,1322.5,36.57506534]
[1673270670033,2.89268295,1322.6,1322.5,36.57505451]
[1673270670793,2.89268295,1322.6,1322.5,34.69831792]
[1673270672900,2.89268295,1322.6,1322.5,36.57506745]
[1673270673201,2.89268295,1322.6,1322.5,39.39016168]
[1673270674851,2.89268295,1322.6,1322.5,39.39018198]
[1673270675081,2.89268295,1322.6,1322.5,36.57506745]
[1673270675615,2.89268295,1322.6,1322.5,39.39019899]
[1673270680029,2.89268295,1322.6,1322.5,36.57506745]
[1673270682207,2.89268295,1322.6,1322.5,39.39019443]
[1673270682398,1.76663451,1322.6,1322.5,39.39019443]
[1673270682848,1.76663451,1322.6,1322.5,34.69831792]
[1673270685077,1.76663451,1322.6,1322.5,36.57513033]
[1673270686334,1.76663451,1322.6,1322.5,34.69831792]
[1673270686699,1.76663451,1322.6,1322.5,36.5751495]
[1673270687015,4.03437908,1322.6,1322.5,34.69831792]
[1673270688190,1.76663451,1322.6,1322.5,34.69831792]
[1673270693578,1.76663451,1322.6,1322.5,39.62024349]
[1673270693965,2.55969458,1322.7,1322.5,39.62024349]
[1673270694279,2.49369458,1322.7,1322.6,5.50566064]
[1673270694522,2.49369458,1322.7,1322.6,31.43548673]
[1673270695893,3.45283327,1322.8,1322.7,6.00157688]
[1673270695894,0.066,1322.8,1322.7,6.00157688]
[1673270696111,2.42868333,1322.9,1322.7,44.63500436]
[1673270696421,2.42868333,1322.9,1322.8,5.50566064]
[1673270696634,2.42868333,1322.9,1322.8,28.28082064]
[1673270696635,0.1607444,1322.9,1322.8,28.28082064]
[1673270696814,0.1607444,1322.9,1322.8,30.51608717]
[1673270697447,2.42868333,1322.9,1322.8,10.83692717]
[1673270697694,2.42868333,1322.9,1322.8,8.60166064]
[1673270697880,5.26348785,1322.9,1322.8,8.60166064]
[1673270698089,2.43468333,1322.9,1322.8,8.60166064]
[1673270698326,5.26348785,1322.9,1322.8,6.89366064]
[1673270698518,5.26948785,1322.9,1322.8,14.45338064]
[1673270698691,3.00154892,1322.9,1322.8,22.01310064]
[1673270698902,5.2620236,1322.9,1322.8,22.01310064]
[1673270699113,5.2680236,1322.9,1322.8,22.01310064]
[1673270699363,3.00154892,1322.9,1322.8,14.45338064]
[1673270699574,2.99554892,1322.9,1322.8,22.01310064]
[1673270700419,2.99554892,1322.9,1322.8,14.45338064]
[1673270700638,3.66002871,1322.9,1322.8,3.89366064]
[1673270700794,5.69608949,1322.9,1322.7,2.09757688]
[1673270701163,6.83333545,1322.8,1322.7,13.35939752]
[1673270701349,6.83933545,1322.8,1322.7,13.45539752]
[1673270701681,4.5733,1322.8,1322.7,2.09757688]
[1673270701993,7.9701653,1322.8,1322.7,2.00157688]
[1673270702312,4.5733,1322.8,1322.7,2.00157688]
[1673270702473,4.5673,1322.8,1322.7,2.00157688]
[1673270703377,7.9701653,1322.8,1322.7,2.00157688]
[1673270703569,4.5733,1322.8,1322.7,2.00157688]
[1673270703885,7.9701653,1322.8,1322.7,2.00157688]
[1673270704049,7.9761653,1322.8,1322.7,2.00157688]
[1673270705860,4.5733,1322.8,1322.7,2.00157688]
[1673270706090,7.9701653,1322.8,1322.7,2.00157688]
[1673270706296,7.9761653,1322.8,1322.7,2.00157688]
[1673270706572,4.5733,1322.8,1322.7,9.56186688]
[1673270706833,4.5733,1322.8,1322.7,9.65786688]
[1673270706834,7.39972957,1322.8,1322.7,9.65786688]
[1673270707144,7.40572957,1322.8,1322.7,9.65786688]
[1673270708148,4.5733,1322.8,1322.7,9.65786688]
[1673270708361,4.5673,1322.8,1322.7,2.09757688]
[1673270708578,4.5673,1322.8,1322.7,9.56186688]
[1673270708799,4.5673,1322.8,1322.7,9.65786688]
[1673270709031,7.39961121,1322.8,1322.7,17.21815688]
[1673270709241,7.40561121,1322.8,1322.7,17.21815688]
[1673270710411,6.83831121,1322.8,1322.7,17.21815688]
[1673270710788,6.83831121,1322.8,1322.7,9.65786688]
[1673270712169,4.006,1322.8,1322.7,9.65786688]
[1673270712465,4.0,1322.8,1322.7,9.65786688]
[1673270713953,6.83220628,1322.8,1322.7,9.65786688]
[1673270714144,6.83820628,1322.8,1322.7,9.65786688]
[1673270719536,2.83820628,1322.8,1322.7,17.21815688]
[1673270719730,2.83220628,1322.8,1322.7,17.21815688]
[1673270720297,2.83220628,1322.8,1322.7,9.65786688]
[1673270720482,2.83220628,1322.8,1322.7,9.65395595]
[1673270721873,2.83220628,1322.8,1322.7,17.21424595]
[1673270724599,2.83220628,1322.8,1322.7,24.77453595]
[1673270725189,2.83220628,1322.8,1322.7,17.21424595]
[1673270727627,2.83220628,1322.8,1322.7,24.77453595]
[1673270732008,2.83217335,1322.8,1322.7,24.77453595]
[1673270732359,6.83217335,1322.8,1322.7,24.77453595]
[1673270732570,6.83817445,1322.8,1322.7,24.77453595]
[1673270734338,5.10376174,1322.8,1322.7,24.77453595]
[1673270734740,2.27158729,1322.8,1322.7,24.77453595]
[1673270735104,5.09776174,1322.8,1322.7,17.21424595]
[1673270735267,5.10376174,1322.8,1322.7,17.21424595]
[1673270736578,2.83817445,1322.8,1322.7,17.21424595]
[1673270736738,2.83217445,1322.8,1322.7,17.21424595]
[1673270738553,9.3446097,1322.9,1322.7,17.21424595]
[1673270738887,6.83555227,1322.8,1322.7,17.21424595]
[1673270739078,4.006,1322.8,1322.7,17.21424595]
[1673270739294,4.0,1322.8,1322.7,17.21424595]
[1673270739480,6.83544934,1322.8,1322.7,17.21424595]
[1673270739693,6.84144934,1322.8,1322.7,17.21424595]
[1673270740340,2.84144934,1322.8,1322.7,24.77453595]
[1673270740538,5.1036908,1322.8,1322.7,24.77453595]
[1673270740754,5.1096908,1322.8,1322.7,24.77453595]
[1673270741170,2.84144934,1322.8,1322.7,17.21424595]
[1673270741378,5.103691,1322.8,1322.7,17.21424595]
[1673270741610,2.84144934,1322.8,1322.7,17.21424595]
[1673270741813,2.83544934,1322.8,1322.7,17.21424595]
[1673270742318,2.83544934,1322.8,1322.7,17.21148223]
[1673270745298,5.1032241,1322.8,1322.7,17.21148223]
[1673270745616,2.84144934,1322.8,1322.7,24.77177223]
[1673270745779,2.83544934,1322.8,1322.7,24.77177223]
[1673270746558,5.10305632,1322.8,1322.7,24.77177223]
[1673270746772,5.10905632,1322.8,1322.7,24.77177223]
[1673270747985,5.10905632,1322.8,1322.7,17.21148223]
[1673270748569,5.10905632,1322.8,1322.7,15.21658]
[1673270750728,5.10905632,1322.8,1322.7,7.65629]
[1673270755568,5.10870009,1322.8,1322.7,15.21658]
[1673270756300,2.27325075,1322.8,1322.7,22.77687]
[1673270756506,2.26725075,1322.8,1322.7,26.57453064]
[1673270759047,5.32944449,1322.9,1322.7,26.57453064]
[1673270759260,5.26944449,1322.9,1322.8,3.79766064]
[1673270759484,2.43399515,1322.9,1322.8,26.47682064]
[1673270759703,5.26344449,1322.9,1322.8,26.57282064]
[1673270759908,5.26944449,1322.9,1322.8,26.57282064]
[1673270761929,3.00219374,1322.9,1322.8,26.57282064]
[1673270762144,2.99619374,1322.9,1322.8,26.57282064]
[1673270762449,5.26259769,1322.9,1322.8,26.57282064]
[1673270762663,5.26859769,1322.9,1322.8,26.57282064]
[1673270762821,2.43314835,1322.9,1322.8,26.57282064]
[1673270763184,5.26259769,1322.9,1322.8,26.57282064]
[1673270763390,5.26859769,1322.9,1322.8,26.57282064]
[1673270765622,5.26859769,1322.9,1322.8,26.57067387]
[1673270767091,2.43314835,1322.9,1322.8,26.57067387]
[1673270767271,2.42714835,1322.9,1322.8,26.57067387]
[1673270768032,5.26259769,1322.9,1322.8,26.57067387]
[1673270768245,5.26859769,1322.9,1322.8,19.01095387]
[1673270768774,3.00219374,1322.9,1322.8,19.01095387]
[1673270768937,2.99619374,1322.9,1322.8,19.01095387]
[1673270769794,2.99619374,1322.9,1322.8,26.57067387]
[1673270769983,5.26232527,1322.9,1322.8,26.57067387]
[1673270770197,5.26832527,1322.9,1322.8,26.57067387]
[1673270772144,3.00219374,1322.9,1322.8,26.57067387]
[1673270772361,2.99619374,1322.9,1322.8,26.57067387]
[1673270772509,2.99619374,1322.9,1322.8,19.01095387]
[1673270773484,2.99619374,1322.9,1322.8,11.45123387]
[1673270775166,2.99619374,1322.9,1322.8,3.89151387]
[1673270775361,2.99619374,1322.9,1322.8,3.79551387]
[1673270775709,25.6718895,1322.9,1322.7,11.0105]
[1673270776023,2.26695842,1322.8,1322.7,14.80816064]
[1673270776212,5.10065476,1322.8,1322.7,14.80816064]
[1673270776428,5.10665476,1322.8,1322.7,22.36845064]
[1673270777041,5.10665476,1322.8,1322.7,14.80816064]
[1673270777250,5.10673529,1322.8,1322.7,22.36845064]
[1673270777480,5.10673529,1322.8,1322.7,29.92874064]
[1673270778329,5.10673529,1322.8,1322.7,37.48903064]
[1673270782462,2.83969634,1322.8,1322.7,29.92874064]
[1673270782674,5.10299728,1322.8,1322.7,29.92874064]
[1673270782989,2.83969634,1322.8,1322.7,37.48903064]
[1673270783202,2.83369634,1322.8,1322.7,37.48903064]
[1673270783805,5.10103219,1322.8,1322.7,37.48903064]
[1673270783998,5.10703219,1322.8,1322.7,37.48903064]
[1673270784752,5.10703219,1322.8,1322.7,29.92874064]
[1673270784980,5.10703219,1322.8,1322.7,22.36845064]
[1673270785158,5.10703219,1322.8,1322.7,29.92874064]
[1673270785355,5.10703219,1322.8,1322.7,37.48903064]
[1673270786295,5.10703219,1322.8,1322.7,29.92874064]
[1673270787909,2.83969634,1322.8,1322.7,29.92874064]
[1673270788139,2.83369634,1322.8,1322.7,11.0105]
[1673270789091,2.83369634,1322.8,1322.7,0.096]
[1673270789244,2.83369634,1322.8,1322.6,22.77759]
[1673270789452,2.26726936,1322.7,1322.6,26.57525064]
[1673270789912,5.1669657,1322.8,1322.6,26.57306715]
[1673270790237,5.1069657,1322.8,1322.6,26.57306715]
[1673270792573,2.27326936,1322.8,1322.6,26.57306715]
[1673270792710,2.26726936,1322.8,1322.6,26.57306715]
[1673270793809,5.1009657,1322.8,1322.6,26.57306715]
[1673270793976,5.1069657,1322.8,1322.6,26.57306715]
[1673270794414,2.27326936,1322.8,1322.6,26.57306715]
[1673270794638,5.1009657,1322.8,1322.6,26.57306715]
[1673270794962,2.27326936,1322.8,1322.6,26.57306715]
[1673270795193,2.26726936,1322.8,1322.6,26.57306715]
[1673270795487,5.1009657,1322.8,1322.6,26.57306715]
[1673270795800,5.1069657,1322.8,1322.6,26.57306715]
[1673270796377,2.27326936,1322.8,1322.6,26.57306715]
[1673270796603,5.1009657,1322.8,1322.6,26.57306715]
[1673270796850,5.1069657,1322.8,1322.6,26.57306715]
[1673270798862,2.27326936,1322.8,1322.6,26.57306715]
[1673270799011,2.26726936,1322.8,1322.6,26.57306715]
[1673270799585,5.1009657,1322.8,1322.6,26.57306715]
[1673270799738,5.1069657,1322.8,1322.6,26.57306715]
[1673270803329,5.1069657,1322.8,1322.6,30.56077618]
[1673270804274,5.1069657,1322.8,1322.7,3.79766064]
[1673270804472,5.1069657,1322.8,1322.7,26.47853064]
[1673270804686,2.27326936,1322.8,1322.7,26.57453064]
[1673270804936,2.26726936,1322.8,1322.7,26.57453064]
[1673270805105,5.1009657,1322.8,1322.7,26.57453064]
[1673270805322,5.1069657,1322.8,1322.7,26.57453064]
[1673270807522,3.05444074,1322.9,1322.7,31.71180035]
[1673270807736,0.1607444,1322.9,1322.8,7.45766064]
[1673270807947,0.1607444,1322.9,1322.8,21.29040064]
[1673270808183,0.1607444,1322.9,1322.8,31.85012064]
[1673270808401,0.1607444,1322.9,1322.8,38.33248868]
[1673270810509,4.44e-05,1322.9,1322.8,39.47418868]
[1673270810687,0.18038372,1323.0,1322.9,1.6287]
[1673270810896,3.01408006,1323.0,1322.9,29.82581064]
[1673270811210,0.18038372,1323.0,1322.9,34.78910051]
[1673270811624,3.01408006,1323.0,1322.9,34.78910051]
[1673270812045,0.18038372,1323.0,1322.9,34.78910051]
[1673270815554,2.26481597,1323.0,1322.9,34.78910051]
[1673270815723,2.5028011,1323.1,1322.9,34.78910051]
[1673270815930,2.4368011,1323.1,1323.0,28.19737064]
[1673270816193,2.4368011,1323.1,1323.0,32.38142169]
[1673270818577,2.4368011,1323.1,1323.0,9.70571169]
[1673270818790,5.27049744,1323.1,1323.0,5.61766064]
[1673270819134,5.27649744,1323.1,1323.0,5.61766064]
[1673270819342,5.84369744,1323.1,1323.0,11.45223064]
[1673270819564,5.27649744,1323.1,1323.0,11.45223064]
[1673270819739,5.27649744,1323.1,1323.0,19.01080064]
[1673270819926,5.27649744,1323.1,1323.0,3.89366064]
[1673270820244,3.01168147,1323.1,1323.0,11.35623064]
[1673270820461,5.2694178,1323.1,1323.0,26.56937064]
[1673270820685,5.8426178,1323.1,1323.0,26.56937064]
[1673270821295,2.44172146,1323.1,1323.0,26.56937064]
[1673270821501,2.43572146,1323.1,1323.0,26.56937064]
[1673270825013,0.17198513,1323.1,1323.0,26.56937064]
[1673270825223,0.17198513,1323.1,1323.0,31.2251717]
[1673270825953,2.43572146,1323.1,1323.0,8.5494617]
[1673270826166,2.43572146,1323.1,1323.0,3.89366064]
[1673270826431,20.3854178,1323.1,1323.0,3.79766064]
[1673270826593,12.8334178,1323.1,1323.0,3.79766064]
[1673270826793,5.2754178,1323.1,1323.0,3.79766064]
[1673270828927,2.44172146,1323.1,1323.0,3.79766064]
[1673270829143,2.43572146,1323.1,1323.0,3.79766064]
[1673270829683,5.2694178,1323.1,1322.9,10.8018]
[1673270829845,12.8334178,1323.1,1322.9,14.59946064]
[1673270830057,2.26373633,1323.0,1322.9,14.59946064]
[1673270830744,2.26005132,1323.0,1322.9,14.59946064]
[1673270836582,2.26005132,1323.0,1322.9,29.71776064]
[1673270836837,2.26005132,1323.0,1322.9,37.27691064]
[1673270837152,2.26005132,1323.0,1322.9,22.15861064]
[1673270837977,2.26005132,1323.0,1322.9,29.55706064]
[1673270838361,2.26005132,1323.0,1322.9,37.11621064]
[1673270838609,2.26005132,1323.0,1322.9,37.15122832]
[1673270839094,2.26005132,1323.0,1322.9,44.71037832]
[1673270839214,2.26005132,1323.0,1322.9,29.59207832]
[1673270839417,2.26005132,1323.0,1322.9,37.15122832]
[1673270840468,2.26005132,1323.0,1322.9,22.03292832]
[1673270840678,2.26005132,1323.0,1322.9,14.43876064]
[1673270840890,5.09374766,1323.0,1322.9,14.43876064]
[1673270841143,5.09974766,1323.0,1322.9,14.43876064]
[1673270841361,5.09974766,1323.0,1322.9,0.096]
[1673270841362,6.87669634,1323.0,1322.9,0.096]
[1673270841668,30.6887753,1323.0,1322.7,11.2505]
[1673270841888,17.95007938,1322.9,1322.8,3.79766064]
[1673270842090,20.2215063,1322.9,1322.8,3.79766064]
[1673270842253,12.6623563,1322.9,1322.8,3.79766064]
[1673270842464,5.1032063,1322.9,1322.8,3.79766064]
[1673270843558,5.1032063,1322.9,1322.8,11.35738064]
[1673270843775,5.1032063,1322.9,1322.8,11.45138064]
[1673270843933,5.1032063,1322.9,1322.8,3.89366064]
[1673270844142,5.1032063,1322.9,1322.8,3.79766064]
[1673270844600,5.10314148,1322.9,1322.8,3.79766064]
[1673270845032,5.10315496,1322.9,1322.8,3.79766064]
[1673270846083,5.10315496,1322.9,1322.8,11.35738064]
[1673270846297,5.10315496,1322.9,1322.8,19.01310064]
[1673270846472,5.10315496,1322.9,1322.8,11.45338064]
[1673270846820,5.10315496,1322.9,1322.8,11.45138064]
[1673270847136,5.10315496,1322.9,1322.8,11.45338064]
[1673270848050,2.27137558,1322.9,1322.8,11.45338064]
[1673270848392,5.09715496,1322.9,1322.8,11.45338064]
[1673270848607,5.10315496,1322.9,1322.8,3.89366064]
[1673270848817,5.10315496,1322.9,1322.8,3.79766064]
[1673270848984,2.83777938,1322.9,1322.8,3.79766064]
[1673270849195,2.83177938,1322.9,1322.8,11.35738064]
[1673270849434,2.83177938,1322.9,1322.8,11.45338064]
[1673270849971,17.95007938,1322.9,1322.8,0.096]
[1673270850149,17.4155,1322.9,1322.7,11.2505]
[1673270850344,2.26602302,1322.8,1322.7,15.04816064]
[1673270850549,5.0985518,1322.8,1322.7,15.04816064]
[1673270850766,2.27202302,1322.8,1322.7,15.04816064]
[1673270851008,2.26602302,1322.8,1322.7,15.04816064]
[1673270852073,5.0985518,1322.8,1322.7,3.89366064]
[1673270852288,27.7837118,1322.8,1322.6,0.096]
[1673270852504,20.2239918,1322.8,1322.6,3.79766064]
[1673270852653,5.1045518,1322.8,1322.6,11.35837064]
[1673270852868,5.1045518,1322.8,1322.6,11.45437064]
[1673270853181,2.27202302,1322.8,1322.6,19.01523064]
[1673270853427,2.26602302,1322.8,1322.6,19.01523064]
[1673270853639,5.0985518,1322.8,1322.6,3.89366064]
[1673270853816,12.6643718,1322.8,1322.6,3.79766064]
[1673270854026,5.1045518,1322.8,1322.6,11.35848064]
[1673270854284,5.1045518,1322.8,1322.6,11.45448064]
[1673270854592,2.27202302,1322.8,1322.6,11.45448064]
[1673270854816,2.26602302,1322.8,1322.6,11.45448064]
[1673270854967,2.26602302,1322.8,1322.6,11.45447064]
[1673270855177,2.26602302,1322.8,1322.6,19.01533064]
[1673270855760,2.26602302,1322.8,1322.6,19.01163511]
[1673270857640,2.26602302,1322.8,1322.6,11.45077511]
[1673270858020,2.26602302,1322.8,1322.6,19.01163511]
[1673270858706,2.26602302,1322.8,1322.6,26.57249511]
[1673270859282,2.26602302,1322.8,1322.6,19.01163511]
[1673270861748,2.26602302,1322.8,1322.6,26.57249511]
[1673270864857,2.89922302,1322.9,1322.7,3.79766064]
[1673270865079,9.2015518,1323.0,1322.8,26.47682064]
[1673270865311,9.2015518,1323.0,1322.8,26.57282064]
[1673270865312,9.1415518,1323.0,1322.8,26.57282064]
[1673270865498,9.1415518,1323.0,1322.8,19.01310064]
[1673270866449,2.26602302,1322.9,1322.8,19.01310064]
[1673270866677,9.2015518,1323.0,1322.8,21.7513737]
[1673270866888,9.1415518,1323.0,1322.9,3.79766064]
[1673270867948,6.87552878,1323.0,1322.9,3.79766064]
[1673270868369,6.87552878,1323.0,1322.9,11.35681064]
[1673270868530,6.87552878,1323.0,1322.9,11.45281064]
[1673270868738,6.87552878,1323.0,1322.9,3.89366064]
[1673270869070,6.87552878,1323.0,1322.9,3.79766064]
[1673270869267,6.87552878,1323.0,1322.9,11.35681064]
[1673270869481,6.87552878,1323.0,1322.9,11.45281064]
[1673270871259,6.87552878,1323.0,1322.9,3.89366064]
[1673270871504,6.87552878,1323.0,1322.9,3.79766064]
[1673270871723,6.87552878,1323.0,1322.9,11.35681064]
[1673270872003,6.87552878,1323.0,1322.9,3.89366064]
[1673270872253,6.87552878,1323.0,1322.9,11.35681064]
[1673270872569,6.87552878,1323.0,1322.9,11.45281064]
[1673270875312,6.87552878,1323.0,1322.9,3.89366064]
[1673270875484,6.87552878,1323.0,1322.8,0.096]
[1673270875693,5.66377852,1322.9,1322.8,3.79766064]
[1673270875905,5.66977852,1322.9,1322.8,3.79766064]
[1673270876841,3.40463251,1322.9,1322.8,3.79766064]
[1673270877065,3.39863251,1322.9,1322.8,3.79766064]
[1673270877571,18.51693251,1322.9,1322.8,3.79766064]
[1673270877782,10.96378251,1322.9,1322.7,10.9528]
[1673270877996,2.26555179,1322.8,1322.7,14.75046064]
[1673270878618,5.0969843,1322.8,1322.7,14.75046064]
[1673270878827,12.11715251,1322.8,1322.7,0.096]
[1673270879215,29.5140253,1322.8,1322.5,0.096]
[1673270879357,2.26626858,1322.6,1322.5,3.79766064]
[1673270880299,5.18613573,1322.7,1322.5,11.35909064]
[1673270880300,7.45240431,1322.7,1322.5,11.35909064]
[1673270880631,7.39240431,1322.7,1322.5,11.45509064]
[1673270884555,4.55956858,1322.7,1322.5,11.45509064]
[1673270884730,7.38640431,1322.7,1322.5,11.45509064]
[1673270884928,7.39240431,1322.7,1322.5,11.45509064]
[1673270885134,5.10510431,1322.7,1322.6,3.79766064]
[1673270885382,2.27226858,1322.7,1322.6,26.48024064]
[1673270885589,2.26626858,1322.7,1322.6,26.57624064]
[1673270885805,16.86290431,1322.8,1322.6,26.57624064]
[1673270886025,16.80290431,1322.8,1322.7,3.79766064]
[1673270886204,5.10510431,1322.8,1322.7,26.47853064]
[1673270886410,5.10510431,1322.8,1322.7,26.57453064]
[1673270886627,2.27226858,1322.8,1322.7,26.57453064]
[1673270886863,2.26626858,1322.8,1322.7,26.57453064]
[1673270890812,27.77826431,1322.8,1322.7,3.89366064]
[1673270891141,25.51799573,1322.8,1322.7,3.79766064]
[1673270891776,10.39855573,1322.8,1322.7,3.79766064]
[1673270892006,2.83883573,1322.8,1322.7,3.79766064]
[1673270892326,17.95227573,1322.8,1322.7,3.79766064]
[1673270892543,17.95827573,1322.8,1322.7,3.79766064]
[1673270892717,15.12544,1322.8,1322.7,3.79766064]
[1673270892928,25.51708774,1322.8,1322.7,3.79766064]
[1673270893154,25.51709346,1322.8,1322.7,3.79766064]
[1673270893483,22.68516,1322.8,1322.7,3.79766064]
[1673270893965,15.12544,1322.8,1322.7,3.79766064]
[1673270894549,17.95728133,1322.8,1322.7,3.79766064]
[1673270895581,2.83784133,1322.8,1322.7,3.79766064]
[1673270895792,2.83184133,1322.8,1322.7,3.79766064]
[1673270897743,10.39156133,1322.8,1322.7,3.79766064]
[1673270897957,25.51700133,1322.8,1322.7,3.79766064]
[1673270898226,10.39756133,1322.8,1322.7,3.79766064]
[1673270898425,25.51700133,1322.8,1322.7,3.79766064]
[1673270898709,17.95728133,1322.8,1322.7,3.79766064]
[1673270901193,10.39756133,1322.8,1322.7,3.79766064]
[1673270901595,2.83784133,1322.8,1322.7,3.79766064]
[1673270901926,2.83184133,1322.8,1322.7,3.79766064]
[1673270902548,2.83184133,1322.8,1322.7,3.79488499]
[1673270903064,2.83184133,1322.8,1322.6,33.79143]
[1673270903280,2.26502326,1322.7,1322.6,14.90706064]
[1673270904663,2.26298215,1322.7,1322.6,14.90706064]
[1673270905488,2.26498215,1322.7,1322.6,14.90506064]
[1673270905699,2.26298215,1322.7,1322.6,14.90706064]
[1673270906446,2.26298215,1322.7,1322.6,22.46792064]
[1673270909877,5.09482348,1322.7,1322.6,22.46792064]
[1673270910084,5.10082348,1322.7,1322.6,30.02878064]
[1673270910497,5.10082348,1322.7,1322.6,14.90706064]
[1673270910816,2.83784133,1322.7,1322.6,14.90706064]
[1673270911061,2.83184133,1322.7,1322.6,14.90706064]
[1673270911808,17.95242133,1322.7,1322.6,14.90706064]
[1673270912015,17.95242133,1322.7,1322.6,11.1094]
[1673270912016,17.95842133,1322.7,1322.6,11.1094]
[1673270912204,25.51871133,1322.7,1322.6,11.1094]
[1673270912752,17.95842133,1322.7,1322.6,11.1094]
[1673270912964,25.51871133,1322.7,1322.6,11.1094]
[1673270913484,35.70651633,1322.7,1322.6,0.096]
[1673270913658,35.70651633,1322.7,1322.3,0.03995759]
[1673270913659,36.74830635,1322.7,1322.3,0.03995759]
[1673270913869,2.26657224,1322.4,1322.3,0.03995759]
[1673270914296,5.09978754,1322.4,1322.3,0.03995759]
[1673270914500,9.83457224,1322.4,1322.3,0.03995759]
[1673270915221,2.27257224,1322.4,1322.3,0.03995759]
[1673270915435,2.26657224,1322.4,1322.3,0.03995759]
[1673270916314,3.97757224,1322.4,1322.3,0.03995759]
[1673270916850,3.97757224,1322.4,1322.3,7.60253759]
[1673270917010,3.97757224,1322.4,1322.3,7.69853759]
[1673270917687,3.97757224,1322.4,1322.3,0.13595759]
[1673270917908,3.97757224,1322.4,1322.3,0.03995759]
[1673270920281,19.10157224,1322.4,1322.3,0.03995759]
[1673270920490,17.4085,1322.4,1322.3,0.03995759]
[1673270920698,19.67507224,1322.4,1322.3,0.03995759]
[1673270920956,17.4085,1322.4,1322.3,0.03995759]
[1673270921169,12.11307224,1322.4,1322.3,0.03995759]
[1673270922192,4.55107224,1322.4,1322.3,0.03995759]
[1673270922446,4.54507224,1322.4,1322.3,0.03995759]
[1673270922818,12.10707224,1322.4,1322.3,0.03995759]
[1673270923029,12.11307224,1322.4,1322.3,0.03995759]
[1673270925177,9.8465,1322.4,1322.3,0.03995759]
[1673270925605,2.2845,1322.4,1322.3,0.03995759]
[1673270925808,2.2785,1322.4,1322.3,0.03995759]
[1673270926397,2.2785,1322.4,1322.3,0.03790084]
[1673270927381,9.8405,1322.4,1322.3,0.03790084]
[1673270927591,2.2845,1322.4,1322.3,0.03790084]
[1673270927783,2.2785,1322.4,1322.3,0.03790084]
[1673270929994,0.5675,1322.4,1322.3,0.03790084]
[1673270930199,0.5675,1322.4,1322.3,22.72564084]
[1673270930433,0.5675,1322.4,1322.3,22.82164084]
[1673270931350,4.4094,1322.5,1322.3,22.82164084]
[1673270935481,4.4094,1322.5,1322.3,15.25906084]
[1673270936442,4.4094,1322.5,1322.3,22.82164084]
[1673270936619,4.4094,1322.5,1322.3,15.25906084]
[1673270939242,4.4094,1322.5,1322.3,22.82164084]
[1673270940104,4.4094,1322.5,1322.3,15.25906084]
[1673270940507,4.4094,1322.5,1322.4,9.5242633]
[1673270940771,4.4094,1322.5,1322.4,9.6202633]
[1673270941350,4.4094,1322.5,1322.4,7.658]
[1673270941591,5.36691875,1322.5,1322.4,7.658]
[1673270941810,5.37291875,1322.5,1322.4,7.658]
[1673270942338,5.37291875,1322.5,1322.4,2.06074107]
[1673270942554,5.37291875,1322.5,1322.4,9.52674107]
[1673270942766,5.37291875,1322.5,1322.4,9.62274107]
[1673270944711,7.63949099,1322.5,1322.4,9.62274107]
[1673270945156,5.37291875,1322.5,1322.4,2.06074107]
[1673270945342,5.37291875,1322.5,1322.4,1.96474107]
[1673270945871,7.63949099,1322.5,1322.4,1.96474107]
[1673270946080,7.63949099,1322.5,1322.4,9.52674107]
[1673270946411,7.63949099,1322.5,1322.4,9.62274107]
[1673270946619,4.80551875,1322.5,1322.4,9.62274107]
[1673270946807,7.06609099,1322.5,1322.4,9.62274107]
[1673270947023,7.07209099,1322.5,1322.4,9.62274107]
[1673270947592,7.07209099,1322.5,1322.4,2.06074107]
[1673270947809,9.90530629,1322.5,1322.4,1.96474107]
[1673270948384,9.90530629,1322.5,1322.4,1.96178927]
[1673270950594,7.63873405,1322.5,1322.4,1.96178927]
[1673270954002,9.90576999,1322.5,1322.4,1.96178927]
[1673270954986,7.63873405,1322.5,1322.4,1.96178927]
[1673270961063,27.48980875,1322.5,1322.4,1.96178927]
[1673270961398,12.36694875,1322.5,1322.4,1.96178927]
[1673270961592,23.32823711,1322.5,1322.4,1.96178927]
[1673270962352,30.88966711,1322.5,1322.4,1.96178927]
[1673270962506,23.32823711,1322.5,1322.4,1.96178927]
[1673270963399,19.92837875,1322.5,1322.4,1.96178927]
[1673270964030,15.76680711,1322.5,1322.4,1.96178927]
[1673270965621,23.32823711,1322.5,1322.4,1.96178927]
[1673270968551,27.48980875,1322.5,1322.4,1.96178927]
[1673270969694,8.20681451,1322.5,1322.4,1.96178927]
[1673270969952,7.24929576,1322.5,1322.4,28.44544991]